[Event "Early-Titled-Tuesday-Blitz-January-16-2024"]
[Site "Chess.com"]
[Date "2024.01.16"]
[Round "2"]
[White "dosto07"]
[Black "Chessdude1987"]
[Result "1/2-1/2"]
[WhiteElo "2529"]
[BlackElo "2302"]
[TimeControl "180+1"]
[EndTime "8:19:03 PST"]
[Termination "Game drawn - insufficient material"]

1. e4 {[%clk 0:03:00.9]} 1... e6 {[%clk 0:03:00.2]} 2. d4 {[%clk 0:02:59.4]}
2... d5 {[%clk 0:03:00.4]} 3. Nd2 {[%clk 0:03:00]} 3... c5 {[%clk 0:02:59.9]} 4.
exd5 {[%clk 0:02:59.8]} 4... Qxd5 {[%clk 0:03:00.8]} 5. Ngf3 {[%clk 0:02:59.6]}
5... cxd4 {[%clk 0:03:01]} 6. Bc4 {[%clk 0:03:00.2]} 6... Qd6 {[%clk 0:03:01.6]}
7. O-O {[%clk 0:03:00.4]} 7... Nf6 {[%clk 0:03:01.5]} 8. Nb3 {[%clk 0:03:01.1]}
8... Nc6 {[%clk 0:03:01.8]} 9. Nbxd4 {[%clk 0:03:01.3]} 9... Nxd4 {[%clk
0:03:02.7]} 10. Nxd4 {[%clk 0:03:01.5]} 10... Be7 {[%clk 0:03:02.9]} 11. Bb3
{[%clk 0:02:56.7]} 11... O-O {[%clk 0:02:58.1]} 12. c3 {[%clk 0:02:56.8]} 12...
e5 {[%clk 0:02:47.3]} 13. Nc2 {[%clk 0:02:52.9]} 13... Qc6 {[%clk 0:02:35.9]}
14. Bg5 {[%clk 0:02:48.1]} 14... Be6 {[%clk 0:02:33.3]} 15. Ne3 {[%clk
0:02:44.7]} 15... Rad8 {[%clk 0:02:25.7]} 16. Qc2 {[%clk 0:02:44.6]} 16... Bxb3
{[%clk 0:02:19.6]} 17. axb3 {[%clk 0:02:38.7]} 17... Nd5 {[%clk 0:02:12.4]} 18.
Bxe7 {[%clk 0:02:26.9]} 18... Nxe7 {[%clk 0:02:12.6]} 19. Rxa7 {[%clk
0:02:25.7]} 19... f5 {[%clk 0:02:10.7]} 20. Rd1 {[%clk 0:02:07.5]} 20... f4
{[%clk 0:02:02.3]} 21. Ng4 {[%clk 0:01:58.6]} 21... Ng6 {[%clk 0:01:54.9]} 22.
Raa1 {[%clk 0:01:49.5]} 22... h5 {[%clk 0:01:47.2]} 23. Rxd8 {[%clk 0:01:31]}
23... Rxd8 {[%clk 0:01:46.1]} 24. Rd1 {[%clk 0:01:31.9]} 24... Rxd1+ {[%clk
0:01:38.7]} 25. Qxd1 {[%clk 0:01:32.1]} 25... hxg4 {[%clk 0:01:37.1]} 26. Qxg4
{[%clk 0:01:28.8]} 26... Qd5 {[%clk 0:01:20.3]} 27. h4 {[%clk 0:01:26.5]} 27...
Nf8 {[%clk 0:01:15.4]} 28. b4 {[%clk 0:01:08.6]} 28... Qe6 {[%clk 0:00:59.8]}
29. Qf3 {[%clk 0:01:05]} 29... Qc6 {[%clk 0:00:55]} 30. Qh5 {[%clk 0:01:03.6]}
30... Qg6 {[%clk 0:00:38.1]} 31. Qxe5 {[%clk 0:00:59.8]} 31... f3 {[%clk
0:00:38.1]} 32. Qd5+ {[%clk 0:00:55.4]} 32... Qf7 {[%clk 0:00:32.1]} 33. Qxf3
{[%clk 0:00:45.6]} 33... Qxf3 {[%clk 0:00:32]} 34. gxf3 {[%clk 0:00:46.2]} 34...
Ng6 {[%clk 0:00:32.5]} 35. Kg2 {[%clk 0:00:42.1]} 35... Nxh4+ {[%clk 0:00:32.1]}
36. Kg3 {[%clk 0:00:42.7]} 36... Ng6 {[%clk 0:00:30.3]} 37. f4 {[%clk
0:00:38.2]} 37... Kf7 {[%clk 0:00:29.9]} 38. c4 {[%clk 0:00:37.4]} 38... Ne7
{[%clk 0:00:28.1]} 39. Kf3 {[%clk 0:00:29.6]} 39... Ke6 {[%clk 0:00:27.1]} 40.
Ke4 {[%clk 0:00:28.6]} 40... Nf5 {[%clk 0:00:26.9]} 41. c5 {[%clk 0:00:24.9]}
41... Ne7 {[%clk 0:00:24.2]} 42. b5 {[%clk 0:00:22.9]} 42... g6 {[%clk
0:00:24.1]} 43. Kd4 {[%clk 0:00:16]} 43... Nd5 {[%clk 0:00:23.9]} 44. Ke4 {[%clk
0:00:14.7]} 44... Nc7 {[%clk 0:00:21.9]} 45. c6 {[%clk 0:00:13.5]} 45... bxc6
{[%clk 0:00:20.5]} 46. bxc6 {[%clk 0:00:12.6]} 46... Kd6 {[%clk 0:00:18.1]} 47.
f5 {[%clk 0:00:12.7]} 47... gxf5+ {[%clk 0:00:10.5]} 48. Kxf5 {[%clk 0:00:13]}
48... Kxc6 {[%clk 0:00:10.9]} 49. f4 {[%clk 0:00:13]} 49... Kd5 {[%clk
0:00:09.9]} 50. Kg6 {[%clk 0:00:12]} 50... Ne8 {[%clk 0:00:08]} 51. f5 {[%clk
0:00:11.6]} 51... Nd6 {[%clk 0:00:06.8]} 52. f6 {[%clk 0:00:11.3]} 52... Kc4
{[%clk 0:00:05.2]} 53. f7 {[%clk 0:00:09.6]} 53... Nxf7 {[%clk 0:00:04.9]} 54.
Kxf7 {[%clk 0:00:10.2]} 54... Kb3 {[%clk 0:00:05]} 55. Ke6 {[%clk 0:00:11]}
55... Kxb2 {[%clk 0:00:05.8]} 1/2-1/2

[Event "Early-Titled-Tuesday-Blitz-January-16-2024"]
[Site "Chess.com"]
[Date "2024.01.16"]
[Round "2"]
[White "hawes33"]
[Black "UNSTOPPABLE_LEGEND"]
[Result "0-1"]
[WhiteElo "2250"]
[BlackElo "2513"]
[TimeControl "180+1"]
[EndTime "8:19:14 PST"]
[Termination "UNSTOPPABLE_LEGEND won on time"]

1. e4 {[%clk 0:03:00.9]} 1... c5 {[%clk 0:02:57.7]} 2. Nc3 {[%clk 0:03:00.2]}
2... d6 {[%clk 0:02:56.5]} 3. g3 {[%clk 0:03:00.6]} 3... g6 {[%clk 0:02:55.6]}
4. Bg2 {[%clk 0:03:00.9]} 4... Bg7 {[%clk 0:02:56.3]} 5. d3 {[%clk 0:03:01.4]}
5... Nf6 {[%clk 0:02:56.8]} 6. Be3 {[%clk 0:03:01.6]} 6... Nc6 {[%clk
0:02:56.9]} 7. h3 {[%clk 0:03:01.7]} 7... Rb8 {[%clk 0:02:56.4]} 8. Qd2 {[%clk
0:03:01.4]} 8... b5 {[%clk 0:02:56.8]} 9. f4 {[%clk 0:02:57.7]} 9... Bd7 {[%clk
0:02:56.2]} 10. Nf3 {[%clk 0:02:56.9]} 10... b4 {[%clk 0:02:55.8]} 11. Ne2
{[%clk 0:02:56.3]} 11... a5 {[%clk 0:02:54.9]} 12. O-O {[%clk 0:02:55.5]} 12...
O-O {[%clk 0:02:53.9]} 13. c3 {[%clk 0:02:54.9]} 13... a4 {[%clk 0:02:49.1]} 14.
g4 {[%clk 0:02:51.5]} 14... a3 {[%clk 0:02:47.2]} 15. bxa3 {[%clk 0:02:50.6]}
15... bxc3 {[%clk 0:02:46.4]} 16. Nxc3 {[%clk 0:02:50.8]} 16... Qa5 {[%clk
0:02:44.1]} 17. Rac1 {[%clk 0:02:50.1]} 17... Qxa3 {[%clk 0:02:43.7]} 18. g5
{[%clk 0:02:49.7]} 18... Nh5 {[%clk 0:02:42.1]} 19. Nd5 {[%clk 0:02:49]} 19...
Rb2 {[%clk 0:02:40]} 20. Rc2 {[%clk 0:02:48.5]} 20... Rxc2 {[%clk 0:02:26.8]}
21. Qxc2 {[%clk 0:02:48]} 21... Rb8 {[%clk 0:02:26.7]} 22. Rb1 {[%clk
0:02:36.9]} 22... Rxb1+ {[%clk 0:02:15.4]} 23. Qxb1 {[%clk 0:02:35.3]} 23... Qa7
{[%clk 0:02:10.3]} 24. Qb3 {[%clk 0:02:17.7]} 24... e6 {[%clk 0:02:06.8]} 25.
Nb6 {[%clk 0:02:09.1]} 25... Be8 {[%clk 0:02:06.8]} 26. Nc4 {[%clk 0:02:06.2]}
26... Qc7 {[%clk 0:02:03.9]} 27. Qb6 {[%clk 0:01:51.3]} 27... Qxb6 {[%clk
0:01:36.5]} 28. Nxb6 {[%clk 0:01:52.2]} 28... Nb4 {[%clk 0:01:37.4]} 29. a4
{[%clk 0:01:46.3]} 29... Nxd3 {[%clk 0:01:36.2]} 30. a5 {[%clk 0:01:45.6]} 30...
Nb4 {[%clk 0:01:36.4]} 31. Bf1 {[%clk 0:01:44.2]} 31... Bc6 {[%clk 0:01:28.8]}
32. a6 {[%clk 0:01:17.5]} 32... Nc2 {[%clk 0:01:24.3]} 33. Kf2 {[%clk
0:00:50.2]} 33... Ng3 {[%clk 0:01:04.3]} 34. Kxg3 {[%clk 0:00:44.2]} 34... Nxe3
{[%clk 0:01:04.1]} 35. Bd3 {[%clk 0:00:38.7]} 35... c4 {[%clk 0:00:42.3]} 36.
Nxc4 {[%clk 0:00:32]} 36... Nxc4 {[%clk 0:00:39.9]} 37. Bxc4 {[%clk 0:00:32.9]}
37... Bxe4 {[%clk 0:00:40.4]} 38. Nd2 {[%clk 0:00:30.4]} 38... Bc6 {[%clk
0:00:33.1]} 39. a7 {[%clk 0:00:29.9]} 39... Bd4 {[%clk 0:00:32.5]} 40. Nb3
{[%clk 0:00:26]} 40... Bxa7 {[%clk 0:00:32.5]} 41. Na5 {[%clk 0:00:26.4]} 41...
Be4 {[%clk 0:00:30.6]} 42. Nb3 {[%clk 0:00:24.9]} 42... Be3 {[%clk 0:00:30.1]}
43. Bb5 {[%clk 0:00:21.6]} 43... Bc2 {[%clk 0:00:28.2]} 44. Na5 {[%clk
0:00:20.6]} 44... Kg7 {[%clk 0:00:26.2]} 45. Nc6 {[%clk 0:00:21]} 45... h6
{[%clk 0:00:23.8]} 46. h4 {[%clk 0:00:20.2]} 46... hxg5 {[%clk 0:00:23.2]} 47.
hxg5 {[%clk 0:00:21.1]} 47... Bd1 {[%clk 0:00:22.4]} 48. Ne7 {[%clk 0:00:19.5]}
48... d5 {[%clk 0:00:21.3]} 49. Nc6 {[%clk 0:00:16.7]} 49... Bh5 {[%clk
0:00:20]} 50. Ne5 {[%clk 0:00:01.4]} 50... Bd4 {[%clk 0:00:20]} 0-1

[Event "Early-Titled-Tuesday-Blitz-January-16-2024"]
[Site "Chess.com"]
[Date "2024.01.16"]
[Round "2"]
[White "Chiquitita23"]
[Black "Kotofeyca"]
[Result "1-0"]
[WhiteElo "2204"]
[BlackElo "2447"]
[TimeControl "180+1"]
[EndTime "8:19:14 PST"]
[Termination "Chiquitita23 won on time"]

1. e4 {[%clk 0:03:00.9]} 1... c5 {[%clk 0:02:59.4]} 2. Nf3 {[%clk 0:02:59.4]}
2... d6 {[%clk 0:02:59.2]} 3. Nc3 {[%clk 0:02:51.4]} 3... a6 {[%clk 0:02:58.8]}
4. g3 {[%clk 0:02:43.8]} 4... g6 {[%clk 0:02:56]} 5. Bg2 {[%clk 0:02:43.7]} 5...
Bg7 {[%clk 0:02:56.3]} 6. O-O {[%clk 0:02:43.7]} 6... Nc6 {[%clk 0:02:56.6]} 7.
Re1 {[%clk 0:02:43.2]} 7... Bg4 {[%clk 0:02:49.7]} 8. h3 {[%clk 0:02:41.3]} 8...
Bxf3 {[%clk 0:02:49.7]} 9. Bxf3 {[%clk 0:02:41]} 9... e6 {[%clk 0:02:48.4]} 10.
Ne2 {[%clk 0:02:35.6]} 10... Nge7 {[%clk 0:02:29.1]} 11. c3 {[%clk 0:02:32.5]}
11... d5 {[%clk 0:02:26.5]} 12. exd5 {[%clk 0:02:31]} 12... Nxd5 {[%clk
0:02:25.7]} 13. d4 {[%clk 0:02:30.8]} 13... cxd4 {[%clk 0:02:21.6]} 14. Nxd4
{[%clk 0:02:30.6]} 14... Nxd4 {[%clk 0:02:20.4]} 15. cxd4 {[%clk 0:02:24.3]}
15... O-O {[%clk 0:02:19.8]} 16. Be3 {[%clk 0:02:11.9]} 16... Qb6 {[%clk
0:02:11.9]} 17. Qd2 {[%clk 0:02:09.2]} 17... Rfd8 {[%clk 0:02:08.5]} 18. Rad1
{[%clk 0:02:05]} 18... Rac8 {[%clk 0:02:01.9]} 19. a3 {[%clk 0:01:57.1]} 19...
Qb3 {[%clk 0:01:51.2]} 20. Be4 {[%clk 0:01:41.5]} 20... Rd7 {[%clk 0:01:32.2]}
21. Qd3 {[%clk 0:01:19.8]} 21... Qxb2 {[%clk 0:00:53.2]} 22. Bxd5 {[%clk
0:01:18.5]} 22... exd5 {[%clk 0:00:34.6]} 23. Rb1 {[%clk 0:01:17.8]} 23... Qa2
{[%clk 0:00:33.5]} 24. Re2 {[%clk 0:00:50.4]} 24... Qc4 {[%clk 0:00:20]} 25. Rc1
{[%clk 0:00:48.6]} 25... Qxc1+ {[%clk 0:00:13.2]} 26. Bxc1 {[%clk 0:00:48.2]}
26... Rxc1+ {[%clk 0:00:14.1]} 27. Kg2 {[%clk 0:00:46.8]} 27... Rc8 {[%clk
0:00:15]} 28. h4 {[%clk 0:00:35.7]} 28... h5 {[%clk 0:00:14.1]} 29. a4 {[%clk
0:00:24.3]} 29... Bf6 {[%clk 0:00:14.3]} 30. a5 {[%clk 0:00:21]} 30... Rc4
{[%clk 0:00:14.3]} 31. Re8+ {[%clk 0:00:18]} 31... Kg7 {[%clk 0:00:14.3]} 32.
Qf3 {[%clk 0:00:05.7]} 32... Rxd4 {[%clk 0:00:13.2]} 33. Qe3 {[%clk 0:00:04]}
33... Rc4 {[%clk 0:00:11.1]} 34. Qb6 {[%clk 0:00:02.4]} 34... d4 {[%clk
0:00:09.5]} 35. Qb3 {[%clk 0:00:01.2]} 35... Rc6 {[%clk 0:00:07.5]} 36. Qa3
{[%clk 0:00:01.5]} 36... Be7 {[%clk 0:00:03]} 37. Rxe7 {[%clk 0:00:01.2]} 37...
Rcc7 {[%clk 0:00:02.4]} 38. Rxd7 {[%clk 0:00:01.4]} 38... Rxd7 {[%clk
0:00:03.3]} 39. Qd3 {[%clk 0:00:01.6]} 39... Kf6 {[%clk 0:00:03]} 40. Kf3 {[%clk
0:00:02.3]} 40... Ke5 {[%clk 0:00:03.2]} 41. Ke2 {[%clk 0:00:02.9]} 41... Kd5
{[%clk 0:00:03]} 42. f4 {[%clk 0:00:03.5]} 42... Rc7 {[%clk 0:00:02.7]} 43. Qf3+
{[%clk 0:00:03]} 43... Kc4 {[%clk 0:00:01.4]} 44. Qd3+ {[%clk 0:00:03.8]} 44...
Kd5 {[%clk 0:00:01.4]} 45. Kd2 {[%clk 0:00:03.7]} 45... Rc3 {[%clk 0:00:01.8]}
46. Qe2 {[%clk 0:00:02.5]} 46... Kc5 {[%clk 0:00:01.6]} 47. Qe5+ {[%clk
0:00:02.7]} 47... Kc4 {[%clk 0:00:02]} 48. Qc7+ {[%clk 0:00:02.4]} 48... Kd5
{[%clk 0:00:01.8]} 49. Qxf7+ {[%clk 0:00:03.1]} 49... Ke4 {[%clk 0:00:01.8]} 50.
Qxg6+ {[%clk 0:00:03.7]} 50... Kf3 {[%clk 0:00:02.1]} 51. Qxh5+ {[%clk
0:00:03.8]} 51... Kxg3 {[%clk 0:00:02.2]} 52. Qg5+ {[%clk 0:00:04.4]} 52... Kf3
{[%clk 0:00:02.6]} 53. Qf6 {[%clk 0:00:04.6]} 53... Rc4 {[%clk 0:00:02.2]} 54.
Qe6 {[%clk 0:00:04.7]} 1-0

[Event "Early-Titled-Tuesday-Blitz-January-16-2024"]
[Site "Chess.com"]
[Date "2024.01.16"]
[Round "2"]
[White "santosalberto1987"]
[Black "Nikita_Klepikov"]
[Result "0-1"]
[WhiteElo "2525"]
[BlackElo "2331"]
[TimeControl "180+1"]
[EndTime "8:19:16 PST"]
[Termination "Nikita_Klepikov won on time"]

1. e4 {[%clk 0:03:00.9]} 1... c5 {[%clk 0:02:59.7]} 2. Nf3 {[%clk 0:03:00.8]}
2... Nc6 {[%clk 0:03:00.5]} 3. Nc3 {[%clk 0:03:00.7]} 3... g6 {[%clk 0:02:59.5]}
4. d4 {[%clk 0:03:00.8]} 4... cxd4 {[%clk 0:03:00.4]} 5. Nxd4 {[%clk 0:03:01.5]}
5... Bg7 {[%clk 0:03:00.3]} 6. Be3 {[%clk 0:03:01.9]} 6... Nf6 {[%clk
0:02:58.2]} 7. Bc4 {[%clk 0:03:02]} 7... O-O {[%clk 0:02:55.3]} 8. Bb3 {[%clk
0:03:01.6]} 8... Re8 {[%clk 0:02:53.4]} 9. f3 {[%clk 0:03:01]} 9... e6 {[%clk
0:02:52.4]} 10. f4 {[%clk 0:03:01.3]} 10... d5 {[%clk 0:02:52]} 11. e5 {[%clk
0:03:01.4]} 11... Nd7 {[%clk 0:02:45.1]} 12. Qd2 {[%clk 0:03:01.3]} 12... Nxd4
{[%clk 0:02:42.7]} 13. Bxd4 {[%clk 0:03:01.2]} 13... b6 {[%clk 0:02:43.6]} 14.
O-O-O {[%clk 0:02:55]} 14... Nc5 {[%clk 0:02:43.6]} 15. g4 {[%clk 0:02:51.6]}
15... a5 {[%clk 0:02:17.5]} 16. a4 {[%clk 0:02:34.4]} 16... Bd7 {[%clk
0:02:14.1]} 17. Kb1 {[%clk 0:02:31.7]} 17... Qe7 {[%clk 0:01:56.6]} 18. f5
{[%clk 0:02:27.1]} 18... Nxb3 {[%clk 0:01:52.3]} 19. cxb3 {[%clk 0:02:27]} 19...
Qb4 {[%clk 0:01:38.2]} 20. f6 {[%clk 0:02:19.5]} 20... Bf8 {[%clk 0:01:36.3]}
21. h4 {[%clk 0:02:14.1]} 21... h6 {[%clk 0:01:16.1]} 22. h5 {[%clk 0:02:03.4]}
22... g5 {[%clk 0:01:14.4]} 23. Be3 {[%clk 0:02:03.6]} 23... Bc6 {[%clk
0:00:59.7]} 24. Bxg5 {[%clk 0:01:39.9]} 24... hxg5 {[%clk 0:00:49]} 25. Qxg5+
{[%clk 0:01:40.8]} 25... Kh7 {[%clk 0:00:43.9]} 26. Qe3 {[%clk 0:00:40.7]} 26...
Qxg4 {[%clk 0:00:26.9]} 27. Rhg1 {[%clk 0:00:29.5]} 27... Qf5+ {[%clk
0:00:25.9]} 28. Ka2 {[%clk 0:00:29.4]} 28... Bh6 {[%clk 0:00:24.9]} 29. Qxb6
{[%clk 0:00:21.8]} 29... Rec8 {[%clk 0:00:22.1]} 30. Qd4 {[%clk 0:00:18.9]}
30... Rab8 {[%clk 0:00:16.9]} 31. Rg2 {[%clk 0:00:15.2]} 31... Rb4 {[%clk
0:00:17]} 32. Qa7 {[%clk 0:00:13.8]} 32... Rf8 {[%clk 0:00:05.3]} 33. Qxa5
{[%clk 0:00:12.4]} 33... Rb7 {[%clk 0:00:04]} 34. Qc5 {[%clk 0:00:11.4]} 34...
Rc7 {[%clk 0:00:02.9]} 35. Qd6 {[%clk 0:00:10.3]} 35... Rcc8 {[%clk 0:00:02.3]}
36. Ne2 {[%clk 0:00:09.8]} 36... d4 {[%clk 0:00:02.7]} 37. Nxd4 {[%clk
0:00:09.5]} 37... Qxh5 {[%clk 0:00:02.4]} 38. Rgd2 {[%clk 0:00:07.7]} 38... Bd5
{[%clk 0:00:02.3]} 39. Rf2 {[%clk 0:00:04.7]} 39... Rb8 {[%clk 0:00:02.7]} 40.
Rff1 {[%clk 0:00:04.4]} 40... Rbd8 {[%clk 0:00:02.6]} 41. Qc7 {[%clk 0:00:04.3]}
41... Rc8 {[%clk 0:00:03]} 42. Qe7 {[%clk 0:00:04.6]} 42... Qh4 {[%clk 0:00:03]}
43. Rh1 {[%clk 0:00:04.2]} 43... Bxh1 {[%clk 0:00:03.2]} 44. Rxh1 {[%clk
0:00:02.5]} 44... Qxh1 {[%clk 0:00:03.4]} 45. Nxe6 {[%clk 0:00:03.4]} 45... Qh5
{[%clk 0:00:04.1]} 46. Nxf8+ {[%clk 0:00:03.3]} 46... Rxf8 {[%clk 0:00:04.3]}
47. a5 {[%clk 0:00:03.2]} 47... Qg4 {[%clk 0:00:04.6]} 48. Qc5 {[%clk
0:00:02.8]} 48... Qe6 {[%clk 0:00:05.1]} 49. Ka3 {[%clk 0:00:01.9]} 49... Rb8
{[%clk 0:00:05.2]} 50. b4 {[%clk 0:00:01.9]} 50... Bd2 {[%clk 0:00:05.4]} 51. b5
{[%clk 0:00:01.5]} 51... Bxa5 {[%clk 0:00:05.5]} 0-1

[Event "Early-Titled-Tuesday-Blitz-January-16-2024"]
[Site "Chess.com"]
[Date "2024.01.16"]
[Round "2"]
[White "JMCadavid1998"]
[Black "PepeCuenca"]
[Result "0-1"]
[WhiteElo "2184"]
[BlackElo "2690"]
[TimeControl "180+1"]
[EndTime "8:19:21 PST"]
[Termination "PepeCuenca won by checkmate"]

1. d4 {[%clk 0:02:58.7]} 1... Nf6 {[%clk 0:02:59.9]} 2. Nf3 {[%clk 0:02:59.3]}
2... g6 {[%clk 0:03:00.3]} 3. c4 {[%clk 0:02:59.9]} 3... Bg7 {[%clk 0:03:00.7]}
4. Nc3 {[%clk 0:03:00.6]} 4... O-O {[%clk 0:03:01.2]} 5. e4 {[%clk 0:03:00.8]}
5... d6 {[%clk 0:03:01.9]} 6. Be2 {[%clk 0:03:01.6]} 6... Bg4 {[%clk 0:03:02.2]}
7. Be3 {[%clk 0:03:01.2]} 7... Nfd7 {[%clk 0:03:00.1]} 8. Rc1 {[%clk 0:03:01.5]}
8... e5 {[%clk 0:02:59]} 9. d5 {[%clk 0:02:59]} 9... a5 {[%clk 0:02:59.3]} 10.
b3 {[%clk 0:02:57.7]} 10... Na6 {[%clk 0:02:59.1]} 11. Nd2 {[%clk 0:02:56.5]}
11... Bxe2 {[%clk 0:02:57.6]} 12. Qxe2 {[%clk 0:02:57.4]} 12... f5 {[%clk
0:02:57.1]} 13. f3 {[%clk 0:02:56.2]} 13... Bf6 {[%clk 0:02:55.1]} 14. O-O
{[%clk 0:02:55.7]} 14... Bg5 {[%clk 0:02:54.5]} 15. a3 {[%clk 0:02:50.5]} 15...
Bxe3+ {[%clk 0:02:51.7]} 16. Qxe3 {[%clk 0:02:51.4]} 16... f4 {[%clk 0:02:51.3]}
17. Qe2 {[%clk 0:02:47.3]} 17... g5 {[%clk 0:02:51.5]} 18. Rb1 {[%clk
0:02:29.1]} 18... h5 {[%clk 0:02:48.1]} 19. b4 {[%clk 0:02:28.9]} 19... b6
{[%clk 0:02:36.4]} 20. Nd1 {[%clk 0:02:03.3]} 20... Rf7 {[%clk 0:02:28]} 21. Nf2
{[%clk 0:02:03.4]} 21... Rg7 {[%clk 0:02:27.5]} 22. Rfc1 {[%clk 0:01:58.5]}
22... Qe8 {[%clk 0:02:14]} 23. Kh1 {[%clk 0:01:56.4]} 23... Qg6 {[%clk
0:02:13.4]} 24. Nd3 {[%clk 0:01:56.4]} 24... g4 {[%clk 0:02:08.5]} 25. Rg1
{[%clk 0:01:45.5]} 25... Kh8 {[%clk 0:01:48.8]} 26. g3 {[%clk 0:01:40.5]} 26...
fxg3 {[%clk 0:01:42.3]} 27. Rxg3 {[%clk 0:01:40.2]} 27... Nf6 {[%clk 0:01:37]}
28. f4 {[%clk 0:01:34.2]} 28... Re8 {[%clk 0:01:12.2]} 29. fxe5 {[%clk 0:01:27]}
29... dxe5 {[%clk 0:01:13.1]} 30. Rf1 {[%clk 0:01:23.2]} 30... h4 {[%clk
0:01:02.7]} 31. Rgg1 {[%clk 0:01:23.2]} 31... g3 {[%clk 0:00:59]} 32. Rf5 {[%clk
0:01:22.9]} 32... Reg8 {[%clk 0:00:45.7]} 33. hxg3 {[%clk 0:01:11.2]} 33... hxg3
{[%clk 0:00:40.8]} 34. Kg2 {[%clk 0:01:11.5]} 34... Rh7 {[%clk 0:00:39.1]} 35.
Nxe5 {[%clk 0:00:55.4]} 35... Rh2+ {[%clk 0:00:29]} 36. Kf1 {[%clk 0:00:55.7]}
36... Qxf5+ {[%clk 0:00:15.8]} 37. exf5 {[%clk 0:00:54.6]} 37... Rxe2 {[%clk
0:00:16.5]} 38. Kxe2 {[%clk 0:00:55.4]} 38... Re8 {[%clk 0:00:16.8]} 39. Nf3
{[%clk 0:00:13.8]} 39... Nd7 {[%clk 0:00:16.5]} 40. Rh1+ {[%clk 0:00:14.5]}
40... Kg8 {[%clk 0:00:12.6]} 41. Rh4 {[%clk 0:00:15.4]} 41... Nxe5 {[%clk
0:00:10]} 42. Re4 {[%clk 0:00:16.1]} 42... g2 {[%clk 0:00:06.9]} 43. Kf2 {[%clk
0:00:16]} 43... Nxf3 {[%clk 0:00:06.3]} 44. Rxe8+ {[%clk 0:00:16.3]} 44... Kf7
{[%clk 0:00:06.8]} 45. Kxg2 {[%clk 0:00:13.3]} 45... Kxe8 {[%clk 0:00:03.6]} 46.
Kf2 {[%clk 0:00:13.6]} 46... axb4 {[%clk 0:00:04.3]} 47. axb4 {[%clk 0:00:13.3]}
47... Nd4 {[%clk 0:00:04.2]} 48. f6 {[%clk 0:00:13]} 48... Nxb4 {[%clk
0:00:03.9]} 49. Ke3 {[%clk 0:00:13.6]} 49... Nf5+ {[%clk 0:00:04]} 50. Kf4
{[%clk 0:00:14]} 50... Nd6 {[%clk 0:00:04.4]} 51. Ke5 {[%clk 0:00:14.4]} 51...
Kf7 {[%clk 0:00:04.9]} 52. Kd4 {[%clk 0:00:14.9]} 52... Na6 {[%clk 0:00:04.8]}
53. c5 {[%clk 0:00:15.8]} 53... Nxc5 {[%clk 0:00:05.3]} 54. Ke5 {[%clk
0:00:16.5]} 54... Nd7+ {[%clk 0:00:05.5]} 55. Kf4 {[%clk 0:00:16.9]} 55... Nxf6
{[%clk 0:00:06.4]} 56. Ke3 {[%clk 0:00:17.7]} 56... Nxd5+ {[%clk 0:00:06.7]} 57.
Kd4 {[%clk 0:00:18.6]} 57... Ne7 {[%clk 0:00:07.3]} 58. Kd3 {[%clk 0:00:18.5]}
58... Ke6 {[%clk 0:00:07.9]} 59. Kc3 {[%clk 0:00:19.4]} 59... c5 {[%clk
0:00:07.8]} 60. Kb3 {[%clk 0:00:19.6]} 60... b5 {[%clk 0:00:08.5]} 61. Kc3
{[%clk 0:00:20.5]} 61... Kd5 {[%clk 0:00:09.3]} 62. Kb2 {[%clk 0:00:21.4]} 62...
Nc6 {[%clk 0:00:10]} 63. Kc2 {[%clk 0:00:22.3]} 63... b4 {[%clk 0:00:10.8]} 64.
Kb2 {[%clk 0:00:22.7]} 64... c4 {[%clk 0:00:11.7]} 65. Kc2 {[%clk 0:00:23]}
65... Kd4 {[%clk 0:00:12.6]} 66. Kb2 {[%clk 0:00:23.9]} 66... b3 {[%clk
0:00:13]} 67. Ka3 {[%clk 0:00:24.3]} 67... Kc3 {[%clk 0:00:11.6]} 68. Ka4 {[%clk
0:00:24.5]} 68... b2 {[%clk 0:00:12.1]} 69. Ka3 {[%clk 0:00:25.1]} 69... b1=Q
{[%clk 0:00:11.6]} 70. Ka4 {[%clk 0:00:24.3]} 70... Qb4# {[%clk 0:00:12.2]} 0-1